bitfinex/quotes_ETHUSD_20250406
["timestamp","ask_amount","ask_price","bid_price","bid_amount"]
[1743933836095,11.72823111,1788.0,1787.9,5.38303727]
[1743933836899,11.72823111,1788.0,1787.9,0.20403727]
[1743933837101,14.3213387,1788.0,1787.9,0.20403727]
[1743933837261,3.9152,1787.9,1787.8,5.173]
[1743933837462,3.9152,1787.9,1787.8,5.37700243]
[1743933837658,3.9152,1787.9,1787.8,0.20400243]
[1743933837659,8.73885387,1787.9,1787.8,0.20400243]
[1743933837858,3.91572,1787.7,1787.5,0.7647]
[1743933838096,2.59310759,1787.6,1787.5,0.7647]
[1743933838436,6.50910759,1787.6,1787.5,5.174]
[1743933841494,6.93379895,1787.6,1787.5,5.174]
[1743933841842,6.93379895,1787.6,1787.5,5.9879]
[1743933841843,3.01779895,1787.6,1787.5,5.9879]
[1743933842930,2.59310759,1787.8,1787.6,0.8139]
[1743933843704,6.50855759,1787.8,1787.6,0.8139]
[1743933845938,6.93509488,1787.8,1787.6,0.8139]
[1743933847821,6.93509488,1787.8,1787.7,0.20290688]
[1743933849146,3.01964488,1787.8,1787.7,0.20290688]
[1743933852755,6.93506488,1787.8,1787.7,0.20290688]
[1743933855874,11.32009737,1787.8,1787.7,0.20290688]
[1743933856088,11.32009737,1787.8,1787.7,5.174]
[1743933856269,11.32009737,1787.8,1787.7,5.37830502]
[1743933858862,11.88239737,1787.8,1787.7,0.20430502]
[1743933860867,3.91586,1787.6,1787.5,5.174]
[1743933861096,6.50896759,1787.6,1787.5,5.37919995]
[1743933864279,6.50896759,1787.6,1787.5,5.37919995]
[1743933868360,9.50896759,1787.6,1787.5,5.37919995]
[1743933868579,10.07126759,1787.6,1787.5,0.20519995]
[1743933868776,11.46996635,1787.6,1787.5,0.20519995]
[1743933883905,10.90766635,1787.6,1787.5,0.20519995]
[1743933892970,3.91569,1787.7,1787.5,0.20519995]
[1743933893262,6.91569,1787.7,1787.6,0.779]
[1743933893431,6.91569,1787.7,1787.6,0.98327293]
[1743933894327,6.93519488,1787.8,1787.6,0.98327293]
[1743933895368,3.01964488,1787.8,1787.6,0.98327293]
[1743933896061,3.01964488,1787.8,1787.6,1.47319722]
[1743933896359,3.01964488,1787.8,1787.7,0.779]
[1743933896726,3.01964488,1787.8,1787.7,0.98282548]
[1743933898963,2.59310759,1787.8,1787.7,0.98282548]
[1743933900254,0.42913484,1788.1,1787.8,0.779]
[1743933900454,2.59310759,1788.1,1788.0,0.779]
[1743933900739,2.59310759,1788.1,1788.0,0.20248342]
[1743933900740,6.50786759,1788.1,1788.0,0.20248342]
[1743933901160,9.50786759,1788.1,1788.0,0.20248342]
[1743933901436,12.66327518,1788.1,1788.0,0.20248342]
[1743933901757,14.3210647,1788.1,1788.0,0.20248342]
[1743933902304,3.91568,1787.7,1787.4,25.945]
[1743933902578,3.91568,1787.7,1787.5,5.174]
[1743933903468,7.83151,1787.7,1787.5,5.174]
[1743933903774,6.50896759,1787.6,1787.5,5.174]
[1743933903987,7.55143235,1787.6,1787.4,25.166]
[1743933904158,3.0,1787.5,1787.4,30.34]
[1743933904550,3.0,1787.5,1787.4,5.174]
[1743933905046,6.91608,1787.5,1787.4,5.174]
[1743933905263,6.91608,1787.5,1787.1,4.55]
[1743933905264,3.91674,1787.2,1787.1,4.55]
[1743933905465,9.50984759,1787.2,1787.1,0.05]
[1743933906048,9.93563119,1787.2,1787.1,0.05]
[1743933907489,11.88314631,1787.2,1787.1,0.05]
[1743933907847,11.88314631,1787.2,1787.1,0.25655862]
[1743933908052,8.88314631,1787.2,1787.1,0.25655862]
[1743933910995,11.88314631,1787.2,1787.1,0.25655862]
[1743933912786,9.93563119,1787.2,1787.1,0.25655862]
[1743933915701,10.49793119,1787.2,1787.1,0.25655862]
[1743933916561,3.91867,1786.4,1786.1,0.05]
[1743933916769,3.91867,1786.4,1786.2,0.17664556]
[1743933916969,2.59310759,1786.3,1786.2,0.17664556]
[1743933917212,9.66722518,1786.3,1786.2,0.17664556]
[1743933917396,12.66722518,1786.3,1786.2,0.17664556]
[1743933917764,9.51181759,1786.3,1786.2,0.17664556]
[1743933918267,9.93676316,1786.3,1786.2,0.17664556]
[1743933918466,6.01805316,1786.3,1786.2,0.17664556]
[1743933919306,9.93676316,1786.3,1786.2,0.17664556]
[1743933922111,9.51181759,1786.3,1786.2,0.17664556]
[1743933924311,13.44797394,1786.3,1786.2,0.17664556]
[1743933924496,6.91893,1786.2,1786.1,0.05]
[1743933924825,7.48123,1786.2,1786.1,0.22535498]
[1743933927106,6.91893,1786.2,1786.1,0.22535498]
[1743933929489,7.48123,1786.2,1786.1,0.22535498]
[1743933929683,9.31643076,1786.2,1786.1,0.22535498]
[1743933930532,3.92043,1785.6,1785.1,0.8515]
[1743933930823,2.59310759,1785.2,1785.1,0.8515]
[1743933931191,2.59310759,1785.2,1785.1,4.77282]
[1743933931394,2.59310759,1785.5,1785.1,3.97131]
[1743933931583,2.59310759,1785.7,1785.5,3.92047]
[1743933931790,2.59310759,1785.9,1785.7,3.91994]
[1743933932296,2.59310759,1785.9,1785.8,5.239]
[1743933935625,0.5623,1786.5,1785.9,0.7943]
[1743933935798,2.59310759,1786.3,1785.9,0.8502898]
[1743933936134,2.59310759,1786.1,1785.9,4.71379]
[1743933937188,2.59310759,1786.1,1786.0,3.91937]
[1743933938113,2.59310759,1786.1,1786.0,4.30012852]
[1743933941707,2.59310759,1786.2,1786.0,4.30012852]
[1743933942500,2.59310759,1786.2,1786.0,4.29997852]
[1743933942737,2.59310759,1786.2,1786.1,3.91915]
[1743933942904,2.59310759,1786.2,1786.1,4.29825731]
[1743933944833,2.59310759,1786.3,1786.1,4.29825731]
[1743933945052,2.59310759,1786.3,1786.2,5.233]
[1743933945440,2.59310759,1786.3,1786.2,5.61134936]
[1743933948375,2.59310759,1786.3,1786.2,6.37664936]
[1743933948575,2.59310759,1786.3,1786.2,10.29557936]
[1743933949259,2.59310759,1786.3,1786.2,6.37664936]
[1743933949968,2.59310759,1786.3,1786.2,5.61134936]
[1743933952067,0.9922748,1786.6,1786.2,9.53027936]
[1743933952249,2.59310759,1786.4,1786.2,9.53027936]
[1743933955666,2.59310759,1786.4,1786.2,5.61134936]
[1743933956366,2.59310759,1786.4,1786.2,9.53026936]
[1743933961656,2.59310759,1786.4,1786.2,9.53018936]
[1743933961862,3.0,1786.6,1786.4,4.74865]
[1743933962141,2.59310759,1786.6,1786.5,4.29256119]
[1743933963066,2.59310759,1786.6,1786.5,0.37429119]
[1743933965694,6.51115759,1786.6,1786.5,0.37429119]
[1743933965992,10.42936759,1786.6,1786.5,0.37429119]
[1743933966182,11.52853435,1786.6,1786.5,0.37429119]
[1743933967277,1.09916676,1786.6,1786.5,0.37429119]
[1743933967464,2.59310759,1786.6,1786.5,1.15129119]
[1743933968682,2.57085809,1786.6,1786.5,1.15129119]
[1743933969491,2.59310759,1786.9,1786.7,3.91774]
[1743933969707,2.59310759,1786.9,1786.8,5.212]
[1743933969842,2.59310759,1786.9,1786.8,5.5845149]
[1743933970577,2.59310759,1787.0,1786.9,3.9173]
[1743933970881,2.59310759,1787.0,1786.9,4.2893551]
[1743933971483,2.59310759,1787.0,1786.9,0.3720551]
[1743933973642,4.47904,1787.2,1786.9,4.2894451]
[1743933973643,0.5623,1787.2,1786.9,4.2894451]
[1743933973883,2.59310759,1787.0,1786.9,0.3720551]
[1743933974180,2.59310759,1787.0,1786.9,4.2894451]
[1743933979994,2.59310759,1787.2,1787.0,3.91709]
[1743933980152,2.59310759,1787.2,1787.1,0.37064014]
[1743933980357,2.59310759,1787.3,1787.1,5.05570014]
[1743933980558,2.59310759,1787.3,1787.2,5.205]
[1743933980896,2.59310759,1787.3,1787.2,5.57518053]
[1743933982400,6.50962759,1787.3,1787.2,5.57518053]
[1743933982574,2.59310759,1787.3,1787.2,5.57518053]
[1743933983897,2.59310759,1787.4,1787.2,5.57518053]
[1743933984266,9.10253518,1787.4,1787.2,5.57518053]
[1743933985603,3.0,1787.3,1787.2,5.57518053]
[1743933986268,5.59310759,1787.3,1787.2,5.57518053]
[1743933986988,3.0,1787.3,1787.2,5.57518053]
[1743933987285,2.59310759,1787.4,1787.2,5.57518053]
[1743933987488,2.59310759,1787.4,1787.2,9.49184053]
[1743933987889,2.59310759,1787.4,1787.3,3.91652]
[1743933988103,4.52751,1787.9,1787.4,3.9161]
[1743933988319,2.59310759,1787.7,1787.5,3.91608]
[1743933988465,2.59310759,1787.7,1787.6,5.209]
[1743933988869,2.59310759,1787.7,1787.6,5.57590831]
[1743933990271,2.59310759,1787.8,1787.6,9.49176831]
[1743933992521,2.59310759,1787.8,1787.6,5.57590831]
[1743933993883,2.59310759,1787.8,1787.6,9.49165831]
[1743933995312,2.59310759,1787.8,1787.6,10.57779194]
[1743933995498,2.59310759,1787.8,1787.6,9.49161831]
[1743933995903,2.59310759,1787.8,1787.7,3.91564]
[1743933996218,0.05,1787.9,1787.8,3.91542]
[1743933996420,0.05,1787.9,1787.8,4.28091485]
[1743933999511,0.05,1787.9,1787.8,4.33684316]
[1743934001919,0.05,1787.9,1787.8,5.09744316]
[1743934003022,0.05,1787.9,1787.8,5.0974411]
[1743934003319,0.05,1787.9,1787.8,5.04151485]
[1743934008127,2.64310759,1787.9,1787.8,9.47891485]
[1743934009896,2.64310759,1787.9,1787.8,5.56349485]
[1743934011405,7.12060759,1787.9,1787.8,5.56649485]
[1743934011610,9.55830759,1787.9,1787.8,0.36549485]
[1743934011902,3.91642,1787.4,1787.2,5.214]
[1743934012234,0.5623,1787.5,1787.2,5.9655]
[1743934012535,2.59310759,1787.5,1787.3,5.216]
[1743934012926,2.59310759,1787.5,1787.4,0.36896767]
[1743934013229,2.59310759,1787.5,1787.3,5.216]
[1743934013399,2.59310759,1787.5,1787.4,0.36896767]
[1743934013602,2.59310759,1787.5,1787.3,5.216]
[1743934013830,2.59310759,1787.5,1787.4,0.37075022]
[1743934014031,2.59310759,1787.5,1787.4,5.218]
[1743934014201,2.59310759,1787.5,1787.4,5.58875022]
[1743934015410,2.59310759,1787.5,1787.4,5.58775022]
[1743934016430,2.59310759,1787.5,1787.4,0.37075022]
[1743934016734,2.59310759,1787.5,1787.4,5.216]
[1743934017029,2.59310759,1787.5,1787.4,5.58675022]
[1743934019502,2.59310759,1787.5,1787.4,5.58375022]
[1743934020098,2.59310759,1787.5,1787.4,0.37075022]
[1743934020308,2.59310759,1787.5,1787.4,5.58275022]
[1743934020523,2.59310759,1787.5,1787.4,5.212]
[1743934020730,2.59310759,1787.5,1787.4,5.58275022]
[1743934021403,7.07148759,1787.5,1787.4,5.58275022]
[1743934022299,3.15540759,1787.5,1787.4,5.58275022]
[1743934025909,2.59310759,1787.5,1787.4,5.58275022]
[1743934026352,8.11399735,1787.5,1787.4,0.37075022]
[1743934026732,8.11399735,1787.5,1787.3,5.21]
[1743934026933,8.11399735,1787.5,1787.4,0.37312822]
[1743934027259,8.11399735,1787.5,1787.3,5.21]
[1743934027459,3.15540759,1787.5,1787.4,0.37312822]
[1743934027625,3.15540759,1787.5,1787.3,5.21]
[1743934027821,3.15540759,1787.5,1787.4,0.37312822]
[1743934028140,3.15540759,1787.5,1787.3,5.21]
[1743934028344,3.15540759,1787.5,1787.4,0.37312822]
[1743934028659,3.15540759,1787.5,1787.3,5.21]
[1743934028866,3.15540759,1787.5,1787.4,0.37312822]
[1743934029041,3.15540759,1787.5,1787.3,5.21]
[1743934029240,3.15540759,1787.5,1787.4,0.37312822]
[1743934029455,3.15540759,1787.5,1787.3,5.21]
[1743934029656,3.15540759,1787.5,1787.4,0.37312822]
[1743934029866,3.15540759,1787.5,1787.3,5.21]
[1743934030165,3.15540759,1787.5,1787.4,0.37312822]
[1743934030467,3.15540759,1787.5,1787.3,5.21]
[1743934030766,3.15540759,1787.5,1787.4,0.37312822]
[1743934031470,3.15540759,1787.5,1787.3,5.21]
[1743934031767,3.15540759,1787.5,1787.4,0.37312822]
[1743934032134,3.15540759,1787.5,1787.3,5.21]
[1743934032335,3.15540759,1787.5,1787.4,0.37312822]
[1743934032585,0.5623,1787.5,1787.4,0.37312822]
[1743934032733,3.15540759,1787.5,1787.3,5.21]
[1743934032932,3.15540759,1787.5,1787.4,0.37312822]
[1743934033255,3.15540759,1787.5,1787.3,5.21]
[1743934033459,3.15540759,1787.5,1787.4,0.37312822]
[1743934033633,3.15540759,1787.5,1787.3,5.21]
[1743934033634,3.9163,1787.4,1787.3,5.21]
[1743934033851,3.9163,1787.4,1787.3,5.58358794]
[1743934034865,3.9163,1787.4,1787.3,0.37358794]
[1743934035066,9.50940759,1787.4,1787.3,0.37358794]
[1743934035268,3.91652,1787.3,1787.2,5.202]
[1743934035458,7.47882,1787.3,1787.2,5.202]
[1743934036464,7.88822595,1787.3,1787.2,5.202]
[1743934037637,3.91675,1787.2,1786.9,25.161]
[1743934037838,2.59310759,1787.0,1786.9,25.161]
[1743934038033,2.59310759,1787.0,1786.9,30.362]
[1743934039551,2.59310759,1787.0,1786.9,5.201]
[1743934040276,2.59310759,1787.0,1786.9,9.11839]
[1743934041182,2.59310759,1787.0,1786.9,5.2]
[1743934041948,2.59310759,1787.0,1786.8,4.74306]
[1743934041949,2.59310759,1787.0,1786.8,3.91756]
[1743934042255,2.59310759,1787.0,1786.9,5.2]
[1743934042868,2.59310759,1787.0,1786.9,5.57721188]
[1743934045698,2.59310759,1787.0,1786.9,9.49460188]
[1743934045865,2.59310759,1787.0,1786.9,10.30710188]
[1743934046071,3.0,1787.2,1787.0,3.91706]
[1743934046294,3.00251354,1787.3,1787.1,0.37629187]
[1743934046467,2.59310759,1787.3,1787.1,0.37629187]
[1743934046969,2.59310759,1787.3,1787.1,4.29322187]
[1743934047606,2.59310759,1787.3,1787.1,5.10562187]
[1743934047790,2.59310759,1787.7,1787.4,3.91618]
[1743934048101,2.59310759,1787.7,1787.5,10.31844656]
[1743934048299,2.59310759,1787.7,1787.6,3.91586]
[1743934048505,2.59310759,1787.7,1787.6,4.28826692]
[1743934048671,2.59310759,1787.7,1787.6,0.37240692]
[1743934049488,2.59310759,1787.7,1787.6,4.28826692]
[1743934049703,2.59310759,1787.7,1787.6,0.37240692]
[1743934050199,0.6123,1787.9,1787.6,5.32005061]
[1743934050372,2.64310759,1787.9,1787.6,4.28826692]
[1743934051406,2.64310759,1787.9,1787.6,0.37240692]
[1743934051598,6.55832759,1787.9,1787.6,0.37240692]
[1743934051901,2.59310759,1787.7,1787.6,0.37240692]
[1743934054669,2.59310759,1787.7,1787.6,4.28826692]
[1743934055566,0.05,1787.9,1787.6,4.28826692]
[1743934055910,2.59310759,1787.8,1787.6,4.28826692]
[1743934056672,2.59310759,1787.8,1787.7,4.73604]
[1743934056872,0.05,1787.9,1787.8,3.91542]
[1743934057079,0.05,1787.9,1787.8,4.28789869]
[1743934057282,0.05,1787.9,1787.8,5.10829869]
[1743934057486,0.05,1787.9,1787.8,5.16422667]
[1743934057915,0.05,1787.9,1787.8,5.16422674]
[1743934058112,0.05,1787.9,1787.8,5.10829869]
[1743934060388,0.05,1787.9,1787.8,5.58647869]
[1743934062681,0.05,1787.9,1787.8,0.37247869]
[1743934062913,0.05,1787.9,1787.8,5.214]
[1743934063113,0.05,1787.9,1787.8,5.58746984]
[1743934063826,3.9652,1787.9,1787.8,5.58746984]
[1743934065832,0.05,1787.9,1787.8,5.58746984]
[1743934070225,2.64310759,1787.9,1787.8,5.58746984]
[1743934078428,2.64310759,1787.9,1787.8,9.50288984]
[1743934079338,2.64310759,1787.9,1787.8,5.58746984]
[1743934080042,0.05,1787.9,1787.8,5.58746984]
[1743934080610,3.9652,1787.9,1787.8,5.58746984]
[1743934081743,0.05,1787.9,1787.8,5.58746984]
[1743934082124,0.05,1787.9,1787.8,5.57746984]
[1743934082738,3.9652,1787.9,1787.8,5.57746984]
[1743934082945,0.05,1787.9,1787.8,5.57746984]
[1743934084017,0.05,1787.9,1787.8,0.37346984]
[1743934084240,0.05,1787.9,1787.8,5.202]
[1743934084649,0.05,1787.9,1787.8,5.57546984]
[1743934085147,0.6123,1787.9,1787.8,5.57546984]
[1743934085625,0.6123,1787.9,1787.8,5.57346984]
[1743934087019,0.05,1787.9,1787.8,5.57346984]
[1743934087956,0.05,1787.9,1787.8,9.48888984]
[1743934088126,0.05,1787.9,1787.8,10.27958984]
[1743934090967,0.05,1787.9,1787.8,6.36416984]
[1743934091338,0.05,1787.9,1787.8,10.27958984]
[1743934096203,0.05,1787.9,1787.8,6.36416984]
[1743934098276,0.05,1787.9,1787.8,10.27958984]
[1743934098771,0.05,1787.9,1787.8,6.36416984]
[1743934099715,0.05,1787.9,1787.8,10.27958984]
[1743934100515,0.05,1787.9,1787.8,6.36416984]
[1743934102619,0.05,1787.9,1787.8,10.27958984]
[1743934103417,0.05,1787.9,1787.8,5.07958984]
[1743934103714,0.05,1787.9,1787.8,10.26858984]
[1743934110685,0.05,1787.9,1787.8,10.32451815]
[1743934111690,0.05,1787.9,1787.8,10.26858984]
[1743934117630,0.05,1787.9,1787.8,5.07958984]
[1743934117818,0.05,1787.9,1787.8,10.25958984]
[1743934120744,0.05,1787.9,1787.8,5.07958984]
[1743934120906,0.05,1787.9,1787.8,10.25758984]
[1743934128065,0.05,1787.9,1787.8,9.46688984]
[1743934128361,0.05,1787.9,1787.8,4.28888984]
[1743934128662,0.05,1787.9,1787.8,9.46488984]
[1743934129645,0.05,1787.9,1787.8,5.54946984]
[1743934133472,0.05,1787.9,1787.8,9.46488984]
[1743934138979,0.05,1787.9,1787.8,4.28888984]
[1743934139182,0.05,1787.9,1787.8,9.46488984]
[1743934139360,0.05,1787.9,1787.8,5.54946984]
[1743934143298,0.05,1787.9,1787.8,10.46731631]
[1743934143480,0.05,1787.9,1787.8,9.52081833]
[1743934144488,0.05,1787.9,1787.8,10.32291833]
[1743934146455,0.05,1787.9,1787.8,10.26698984]
[1743934159137,0.05,1787.9,1787.8,6.35156984]
[1743934159286,0.6123,1787.9,1787.8,5.54946984]
[1743934162989,0.6123,1787.9,1787.8,9.52081857]
[1743934162990,0.05,1787.9,1787.8,9.52081857]
[1743934169422,0.05,1787.9,1787.8,4.34481857]
[1743934169612,0.05,1787.9,1787.8,9.46488984]
[1743934170818,4.93965335,1787.9,1787.8,0.37346984]
[1743934171017,5.41297234,1787.9,1787.8,0.37346984]
[1743934172521,8.41297234,1787.9,1787.8,0.37346984]
[1743934172693,4.47794,1787.7,1787.2,45.31553]
[1743934172891,3.9161,1787.5,1787.3,5.55171901]
[1743934173096,0.5623,1787.4,1787.3,0.37571901]
[1743934173390,0.5623,1787.4,1787.3,5.55171901]
[1743934174128,4.90054027,1787.4,1787.3,0.37571901]
[1743934174301,7.90054027,1787.4,1787.3,0.37571901]
[1743934174621,9.0822043,1787.4,1787.3,0.37571901]
[1743934175715,3.91674,1787.2,1787.0,5.176]
[1743934175924,0.5623,1787.1,1786.7,0.87178136]
[1743934176225,4.47957,1787.0,1786.8,5.176]
[1743934176790,4.47957,1787.0,1786.5,36.904]
[1743934176996,0.5623,1786.8,1786.6,5.177]
[1743934177213,3.5623,1786.8,1786.6,5.177]
[1743934177528,4.48013,1786.7,1786.5,36.904]
[1743934177726,5.619905,1786.7,1786.5,36.904]
[1743934177937,5.619905,1786.7,1786.6,0.34662115]
[1743934178318,8.619905,1786.7,1786.6,0.34662115]
[1743934179835,4.702075,1786.7,1786.6,0.34662115]
[1743934180141,5.12649012,1786.7,1786.6,0.34662115]
[1743934181797,3.98671512,1786.7,1786.6,0.34662115]
[1743934182004,9.8480454,1787.1,1786.6,0.34662115]
[1743934182202,0.5623,1787.0,1786.6,0.34662115]
[1743934182501,3.97657882,1787.0,1786.6,0.34662115]
[1743934182703,7.89376882,1787.0,1786.6,0.34662115]
[1743934182918,0.78937688,1786.9,1786.6,0.34662115]
[1743934183319,4.48008,1786.8,1786.6,0.34662115]
[1743934183733,8.39788,1786.8,1786.6,0.34662115]
[1743934184122,3.91783,1786.7,1786.6,0.34662115]
[1743934184329,7.48013,1786.7,1786.6,0.34662115]
[1743934184517,8.619921,1786.7,1786.6,0.34662115]
[1743934187902,4.702091,1786.7,1786.2,5.188]
[1743934188225,4.702091,1786.7,1786.3,0.34958953]
[1743934188226,3.0,1786.4,1786.3,0.34958953]
[1743934188712,3.5623,1786.4,1786.3,0.34958953]
[1743934188913,8.620708,1786.4,1786.1,5.188]
[1743934189240,4.702218,1786.4,1786.1,5.188]
[1743934189443,4.702218,1786.4,1786.2,0.35104292]
[1743934190139,1.702218,1786.4,1786.2,0.35104292]
[1743934190455,0.97957536,1786.4,1786.2,0.35104292]
[1743934191006,0.41727536,1786.4,1786.2,0.35104292]
[1743934191207,0.5623,1786.5,1786.2,0.35104292]
[1743934191515,3.5623,1786.6,1786.2,0.35104292]
[1743934191718,4.702091,1786.7,1786.2,4.26988292]
[1743934192120,8.619931,1786.7,1786.2,4.26988292]
[1743934192325,0.8619931,1786.6,1786.2,4.26988292]
[1743934192526,0.8619931,1786.6,1786.2,0.35104292]
[1743934193050,1.28892373,1786.6,1786.2,0.35104292]
[1743934194312,4.139791,1786.7,1786.3,0.7704]
[1743934194514,3.0,1786.7,1786.3,0.7704]
[1743934194726,3.0,1786.7,1786.4,0.35002274]
[1743934194923,3.0,1786.7,1786.5,5.191]
[1743934195129,3.0,1786.7,1786.6,0.34880426]
[1743934198553,6.91783,1786.7,1786.6,0.34880426]
[1743934198914,8.04323672,1786.7,1786.6,0.34880426]
[1743934199626,4.12540672,1786.7,1786.6,0.34880426]
[1743934200247,3.0,1786.7,1786.6,0.34880426]
[1743934203220,4.47954,1787.0,1786.6,0.34880426]
[1743934203655,3.0,1786.9,1786.6,0.34880426]
[1743934204325,3.41183465,1786.9,1786.6,0.34880426]
[1743934207156,4.47954,1787.0,1786.6,0.34880426]
[1743934207157,3.0,1787.0,1786.6,0.34880426]
[1743934207858,6.91727,1787.0,1786.6,0.34880426]
[1743934208059,0.691727,1786.9,1786.6,0.34880426]
[1743934208260,6.91727,1787.0,1786.6,0.34880426]
[1743934209631,3.91747,1786.9,1786.6,0.34880426]
[1743934210557,4.47977,1786.9,1786.6,5.53580426]
[1743934210723,6.91772,1786.8,1786.6,0.34880426]
[1743934210929,6.91783,1786.7,1786.6,0.34880426]
[1743934211129,8.001385,1786.7,1786.3,0.7697]
[1743934211329,8.001385,1786.7,1786.6,0.34805982]
[1743934211663,8.001385,1786.7,1786.6,0.34796055]
[1743934211825,3.91828,1786.5,1786.3,5.191]
[1743934212029,3.91828,1786.5,1786.4,0.34898036]
[1743934212229,7.3329271,1786.5,1786.4,0.34898036]
[1743934212462,3.4146471,1786.5,1786.4,0.34898036]
[1743934213352,3.0,1786.5,1786.4,0.34898036]
[1743934214164,5.9309554,1786.8,1786.4,0.34898036]
[1743934214373,5.9309554,1786.8,1786.5,0.7906]
[1743934214574,3.0,1786.7,1786.5,0.7906]
[1743934214743,3.0,1786.7,1786.6,0.34805982]
[1743934215513,0.42363014,1787.0,1786.6,0.34805982]
[1743934215683,0.42363014,1787.0,1786.7,5.9876]
[1743934215875,3.5623,1787.1,1786.7,5.9876]
[1743934216073,5.29499954,1787.1,1786.8,0.34674245]
[1743934217364,9.21197954,1787.1,1786.8,0.34674245]
[1743934218452,13.12911954,1787.1,1786.8,0.34674245]
[1743934218653,3.0,1786.9,1786.8,0.34674245]
[1743934218848,3.5623,1786.9,1786.8,0.34674245]
[1743934219092,3.91761,1786.8,1786.5,5.9643]
[1743934219268,3.0,1786.7,1786.5,5.2]
[1743934219584,6.91796,1786.7,1786.4,5.201]
[1743934220163,3.0,1786.8,1786.4,5.201]
[1743934220365,8.1321378,1786.8,1786.5,0.7643]
[1743934220864,4.2145278,1786.8,1786.5,0.7643]
[1743934221266,8.1321778,1786.8,1786.5,0.7643]
[1743934221461,3.0,1786.8,1786.5,0.7643]
[1743934222658,6.91762,1786.8,1786.5,0.7643]
[1743934222857,6.91762,1786.8,1786.6,0.34805982]
[1743934223676,6.91762,1786.8,1786.4,5.201]
[1743934224201,6.91762,1786.8,1786.5,0.34852006]
[1743934224396,8.0759188,1786.8,1786.5,0.34852006]
[1743934224910,4.4802,1786.7,1786.5,0.34852006]
[1743934225210,0.5623,1786.7,1786.5,0.34852006]
[1743934225359,4.48017,1786.7,1786.5,0.34852006]
[1743934226378,8.0759188,1786.8,1786.5,0.34852006]
[1743934226580,0.80759188,1786.7,1786.5,0.34852006]
[1743934226979,4.72544188,1786.7,1786.5,0.34852006]
[1743934228090,0.80759188,1786.7,1786.5,0.34852006]
[1743934228259,8.0759188,1786.8,1786.5,0.34852006]
[1743934229584,11.9936988,1786.8,1786.5,0.34852006]
[1743934229770,8.0759188,1786.8,1786.5,0.34852006]
[1743934229972,8.0759188,1786.8,1786.5,1.11642006]
[1743934230490,4.1582988,1786.8,1786.5,1.11642006]
[1743934230697,11.9937588,1786.8,1786.5,1.11642006]
[1743934230860,3.0,1786.6,1786.5,1.11642006]
[1743934231060,3.0,1786.6,1786.5,0.34852006]
[1743934231471,0.5623,1786.9,1786.5,0.34852006]
[1743934231472,6.91767,1786.8,1786.5,0.34852006]
[1743934231668,3.0,1786.6,1786.5,0.4978801]
[1743934231870,7.609837,1786.6,1786.5,0.4978801]
[1743934232894,7.609837,1786.6,1786.5,0.49834884]
[1743934233599,3.691787,1786.6,1786.5,0.49834884]
[1743934233769,0.5623,1786.9,1786.5,1.31594884]
[1743934234106,3.0,1786.9,1786.5,5.23418884]
[1743934234488,3.91732,1787.0,1786.5,5.23418884]
[1743934234874,3.0,1786.9,1786.5,5.23418884]
[1743934235081,8.81089885,1787.1,1786.5,5.23418884]
[1743934235282,0.86952183,1787.0,1786.5,5.23418884]
[1743934235678,8.81089885,1787.1,1786.6,0.8176]
[1743934235679,0.41451885,1787.1,1786.6,0.8176]
[1743934235984,3.91711,1787.1,1786.7,0.49660299]
[1743934236189,3.91711,1787.1,1786.8,5.201]
[1743934236569,3.91711,1787.1,1786.9,0.49576714]
[1743934237693,4.33284143,1787.1,1786.9,0.49576714]
[1743934237891,0.41573143,1787.1,1786.9,0.49576714]
[1743934238092,3.0,1787.2,1786.9,0.49576714]
[1743934238292,3.0,1787.2,1786.9,1.31336714]
[1743934242712,3.42013937,1787.2,1786.9,1.31336714]
[1743934242991,0.5623,1787.5,1787.0,4.73476]
[1743934243187,0.5623,1787.7,1787.2,3.91665]
[1743934243387,3.91553,1787.8,1787.3,6.51606975]
[1743934243615,3.0,1787.7,1787.3,6.51606975]
[1743934243795,3.691553,1787.7,1787.3,6.51606975]
[1743934243997,0.691553,1787.7,1787.3,6.51606975]
[1743934244398,3.691553,1787.7,1787.3,6.51606975]
[1743934244598,7.607193,1787.7,1787.3,6.51606975]
[1743934245014,0.691553,1787.7,1787.3,10.43255975]
[1743934245193,3.41644749,1787.8,1787.3,10.43255975]
[1743934245630,3.41644749,1787.8,1787.4,3.91624]
[1743934245833,3.41644749,1787.8,1787.5,1.31163767]
[1743934246304,0.05,1787.9,1787.5,1.31163767]
[1743934246506,3.05,1787.9,1787.5,1.31163767]
[1743934247235,3.05,1787.9,1787.5,1.83442544]
[1743934248011,0.05,1787.9,1787.6,0.8207]
[1743934248210,0.05,1787.9,1787.7,5.69951657]
[1743934249338,0.05,1787.9,1787.7,9.61511657]
[1743934249537,0.05,1787.9,1787.7,5.69951657]
[1743934253045,0.05,1787.9,1787.7,9.61509657]
[1743934253255,0.05,1787.9,1787.8,4.69812]
[1743934253570,0.05,1787.9,1787.8,5.18926968]
[1743934254920,0.05,1787.9,1787.8,5.24519467]
[1743934256775,0.05,1787.9,1787.8,5.18926968]
[1743934260257,0.05,1787.9,1787.8,1.27384968]
[1743934260427,0.05,1787.9,1787.8,6.47984968]
[1743934260628,0.05,1787.9,1787.8,0.49114968]
[1743934260860,0.05,1787.9,1787.8,5.69714968]
[1743934262726,0.05,1787.9,1787.8,10.39526968]
[1743934263257,0.05,1787.9,1787.8,10.40119457]
[1743934263830,0.05,1787.9,1787.8,10.40119461]
[1743934265328,0.05,1787.9,1787.8,10.34526968]
[1743934273370,0.05,1787.9,1787.8,10.40119222]
[1743934273561,0.05,1787.9,1787.8,10.34526968]
[1743934274076,0.05,1787.9,1787.8,10.40119223]
[1743934274380,0.05,1787.9,1787.8,10.34526968]
[1743934274573,0.05,1787.9,1787.8,6.42984968]
[1743934274774,0.05,1787.9,1787.8,5.63714968]
[1743934275281,0.05,1787.9,1787.8,5.63914968]
[1743934275981,7.5275,1787.9,1787.8,5.64014968]
[1743934276181,8.671757,1787.9,1787.8,5.64014968]
[1743934276947,9.09343801,1787.9,1787.8,5.64014968]
[1743934279083,9.09343801,1787.9,1787.8,0.44114968]